fUSD/lending_fUSD_20240425
["ID","MTS","AMOUNT","RATE_DAILY","PERIOD"]
[323558638,1714085462411,-500.0,0.00011506,2]
[323558639,1714085462420,-751.7,0.00011506,2]
[323558640,1714085462430,-500.0,0.00011506,2]
[323558641,1714085462439,-500.0,0.00011506,2]
[323558642,1714085462448,-500.0,0.00011506,2]
[323558643,1714085462457,-500.0,0.00011506,2]
[323558644,1714085462467,-500.0,0.00011506,2]
[323558645,1714085462476,-372.8,0.00011506,2]
[323558646,1714085462485,-500.0,0.00011506,2]
[323558647,1714085462494,-500.0,0.00011506,2]
[323558648,1714085462504,-500.0,0.00011506,2]
[323558649,1714085462514,-500.0,0.00011506,2]
[323558650,1714085462522,-500.0,0.00011506,2]
[323558651,1714085462532,-500.0,0.00011506,2]
[323558652,1714085462541,-261.25387639,0.00011506,2]
[323558653,1714085462550,-500.0,0.00011506,2]
[323558654,1714085462560,-552.69,0.00011506,2]
[323558655,1714085462569,-500.0,0.00011506,2]
[323558656,1714085462579,-714.94,0.00011506,2]
[323558657,1714085462588,-500.0,0.00011506,2]
[323558658,1714085462597,-500.0,0.00011506,2]
[323558659,1714085462606,-500.0,0.00011506,2]
[323558660,1714085462615,-500.0,0.00011506,2]
[323558661,1714085462624,-500.0,0.00011506,2]
[323558662,1714085462633,-500.0,0.00011506,2]
[323558663,1714085462642,-500.0,0.00011506,2]
[323558664,1714085462651,-500.0,0.00011506,2]
[323558665,1714085462660,-1258.55,0.00011506,2]
[323558666,1714085462669,-500.0,0.00011506,2]
[323558667,1714085462679,-500.0,0.00011506,2]
[323558668,1714085462688,-500.0,0.00011506,2]
[323558669,1714085462698,-500.0,0.00011506,2]
[323558670,1714085462706,-500.0,0.00011506,2]
[323558671,1714085462715,-458.50628129,0.00011506,2]
[323558672,1714085462724,-500.0,0.00011506,2]
[323558673,1714085462733,-500.0,0.00011506,2]
[323558674,1714085462742,-2126.61,0.00011506,2]
[323558675,1714085462752,-500.0,0.00011506,2]
[323558676,1714085462761,-695.52,0.00011506,2]
[323558677,1714085462771,-500.0,0.00011506,2]
[323558678,1714085462780,-500.0,0.00011506,2]
[323558679,1714085462790,-500.0,0.00011506,2]
[323558680,1714085462800,-1292.14,0.00011506,2]
[323558681,1714085462809,-500.0,0.00011506,2]
[323558682,1714085462819,-500.0,0.00011506,2]
[323558683,1714085462828,-500.0,0.00011506,2]
[323558684,1714085462838,-500.0,0.00011506,2]
[323558685,1714085462846,-500.0,0.00011506,2]
[323558686,1714085462855,-500.0,0.00011506,2]
[323558687,1714085462864,-500.0,0.00011506,2]
[323558688,1714085462874,-500.0,0.00011506,2]
[323558689,1714085462883,-500.0,0.00011506,2]
[323558690,1714085462892,-4888.82,0.00011506,2]
[323558691,1714085462901,-1378.04,0.00011506,2]
[323558692,1714085462910,-768.76,0.00011506,2]
[323558693,1714085462918,-500.0,0.00011506,2]
[323558694,1714085462928,-580.53081798,0.00011506,2]
[323558695,1714085462938,-500.0,0.00011506,2]
[323558696,1714085462947,-500.0,0.00011506,2]
[323558697,1714085462956,-500.0,0.00011506,2]
[323558698,1714085462967,-500.0,0.00011506,2]
[323558699,1714085462977,-500.0,0.00011506,2]
[323558700,1714085462986,-3107.28,0.00011506,2]
[323558701,1714085462995,-500.0,0.00011506,2]
[323558702,1714085463004,-3358.04,0.00011506,2]
[323558703,1714085463014,-500.0,0.00011506,2]
[323558704,1714085463024,-500.0,0.00011506,2]
[323558705,1714085463033,-500.0,0.00011506,2]
[323558706,1714085463043,-500.0,0.00011506,2]
[323558707,1714085463052,-500.0,0.00011506,2]
[323558708,1714085463062,-500.0,0.00011506,2]
[323558709,1714085463071,-500.0,0.00011506,2]
[323558710,1714085463081,-500.0,0.00011506,2]
[323558711,1714085463090,-500.0,0.00011506,2]
[323558712,1714085463099,-500.0,0.00011506,2]
[323558713,1714085463108,-500.0,0.00011506,2]
[323558714,1714085463117,-1350.86,0.00011506,2]
[323558715,1714085463126,-500.0,0.00011506,2]
[323558716,1714085463136,-1869.75,0.00011506,2]
[323558717,1714085463145,-500.0,0.00011506,2]
[323558718,1714085463155,-602.42,0.00011506,2]
[323558719,1714085463164,-500.0,0.00011506,2]
[323558720,1714085463173,-500.0,0.00011506,2]
[323558721,1714085463185,-500.0,0.00011506,2]
[323558722,1714085463194,-500.0,0.00011506,2]
[323558723,1714085463203,-564.41,0.00011506,2]
[323558724,1714085463213,-500.0,0.00011506,2]
[323558725,1714085463222,-500.0,0.00011506,2]
[323558726,1714085463231,-500.0,0.00011506,2]
[323558727,1714085463241,-877.83,0.00011506,2]
[323558728,1714085463250,-10975.42,0.00011506,2]
[323558729,1714085463259,-1140.21,0.00011506,2]
[323558730,1714085463270,-626.9,0.00011506,2]
[323558731,1714085463279,-500.0,0.00011506,2]
[323558732,1714085463289,-500.0,0.00011506,2]
[323558733,1714085463298,-500.0,0.00011506,2]
[323558734,1714085463308,-626.85,0.00011506,2]
[323558735,1714085463318,-500.0,0.00011506,2]
[323558736,1714085463327,-157.08,0.00011506,2]
[323558737,1714085463336,-500.0,0.00011506,2]
[323558738,1714085463346,-500.0,0.00011506,2]
[323558739,1714085463354,-688.34,0.00011506,2]
[323558740,1714085463364,-500.0,0.00011506,2]
[323558741,1714085463373,-7204.56,0.00011506,2]
[323558742,1714085463382,-500.0,0.00011506,2]
[323558743,1714085463391,-1096.01,0.00011506,2]
[323558744,1714085463401,-500.0,0.00011506,2]
[323558745,1714085463410,-500.0,0.00011506,2]
[323558746,1714085463420,-500.0,0.00011506,2]
[323558747,1714085463431,-500.0,0.00011506,2]
[323558748,1714085463439,-500.0,0.00011506,2]
[323558749,1714085463448,-1301.53,0.00011506,2]
[323558750,1714085463457,-500.0,0.00011506,2]
[323558751,1714085463465,-500.0,0.00011506,2]
[323558752,1714085463475,-500.0,0.00011506,2]
[323558753,1714085463484,-150.82,0.00011506,2]
[323558754,1714085463493,-800.08,0.00011506,2]
[323558755,1714085463502,-500.0,0.00011506,2]
[323558756,1714085463511,-500.0,0.00011506,2]
[323558757,1714085463520,-500.0,0.00011506,2]
[323558758,1714085463529,-1612.06,0.00011506,2]
[323558759,1714085463538,-500.0,0.00011506,2]
[323558760,1714085463547,-500.0,0.00011506,2]
[323558761,1714085463555,-500.0,0.00011506,2]
[323558762,1714085463564,-500.0,0.00011506,2]
[323558763,1714085463573,-1347.61,0.00011506,2]
[323558764,1714085463582,-500.0,0.00011506,2]
[323558765,1714085463591,-1695.57,0.00011506,2]
[323558766,1714085463600,-500.0,0.00011506,2]
[323558767,1714085463609,-500.0,0.00011506,2]
[323558768,1714085463618,-500.0,0.00011506,2]
[323558769,1714085463627,-500.0,0.00011506,2]
[323558770,1714085463636,-500.0,0.00011506,2]
[323558771,1714085463645,-500.0,0.00011506,2]
[323558772,1714085463654,-541.16974332,0.00011506,2]
[323558773,1714085463663,-1214.77,0.00011506,2]
[323558774,1714085463672,-547.46,0.00011506,2]
[323558775,1714085463682,-580.35,0.00011506,2]
[323558776,1714085463691,-959.67,0.00011506,2]
[323558777,1714085463700,-1214.98,0.00011506,2]
[323558778,1714085463709,-500.0,0.00011506,2]
[323558779,1714085463718,-1160.75,0.00011506,2]
[323558780,1714085463727,-1257.77,0.00011506,2]
[323558781,1714085463736,-500.0,0.00011506,2]
[323558782,1714085463745,-500.0,0.00011506,2]
[323558783,1714085463755,-500.0,0.00011506,2]
[323558784,1714085463766,-500.0,0.00011506,2]
[323558785,1714085463776,-500.0,0.00011506,2]
[323558786,1714085463785,-500.0,0.00011506,2]
[323558787,1714085463794,-500.0,0.00011506,2]
[323558788,1714085463803,-500.0,0.00011506,2]
[323558789,1714085463812,-678.82,0.00011506,2]
[323558790,1714085463822,-259.37872882,0.00011506,2]
[323558791,1714085463831,-500.0,0.00011506,2]
[323558792,1714085463840,-1162.58,0.00011506,2]
[323558793,1714085463849,-1677.5,0.00011506,2]
[323558794,1714085463858,-500.0,0.00011506,2]
[323558795,1714085463867,-500.0,0.00011506,2]
[323558796,1714085463876,-500.0,0.00011506,2]
[323558797,1714085463885,-500.0,0.00011506,2]
[323558798,1714085463894,-500.0,0.00011506,2]
[323558799,1714085463903,-500.0,0.00011506,2]
[323558800,1714085463912,-500.0,0.00011506,2]
[323558801,1714085463921,-500.0,0.00011506,2]
[323558802,1714085463932,-500.0,0.00011506,2]
[323558803,1714085463941,-500.0,0.00011506,2]
[323558804,1714085463950,-1963.2,0.00011506,2]
[323558805,1714085463960,-500.0,0.00011506,2]
[323558806,1714085463970,-500.0,0.00011506,2]
[323558807,1714085463978,-500.0,0.00011506,2]
[323558808,1714085463987,-949.39,0.00011506,2]
[323558809,1714085463997,-500.0,0.00011506,2]
[323558810,1714085464007,-1358.37,0.00011506,2]
[323558811,1714085464016,-1842.75,0.00011506,2]
[323558812,1714085464025,-500.0,0.00011506,2]
[323558813,1714085464036,-597.0,0.00011506,2]
[323558814,1714085464046,-500.0,0.00011506,2]
[323558815,1714085464056,-500.0,0.00011506,2]
[323558816,1714085464065,-500.0,0.00011506,2]
[323558817,1714085464075,-500.0,0.00011506,2]
[323558818,1714085464085,-500.0,0.00011506,2]
[323558819,1714085464094,-500.0,0.00011506,2]
[323558820,1714085464104,-1218.91,0.00011506,2]
[323558821,1714085464113,-500.0,0.00011506,2]
[323558822,1714085464124,-355.16,0.00011506,2]
[323558823,1714085464134,-500.0,0.00011506,2]
[323558824,1714085464145,-500.0,0.00011506,2]
[323558825,1714085464156,-500.0,0.00011506,2]
[323558826,1714085464167,-500.0,0.00011506,2]
[323558827,1714085464177,-18817.42,0.00011506,2]
[323558828,1714085464186,-500.0,0.00011506,2]
[323558829,1714085464195,-500.0,0.00011506,2]
[323558830,1714085464205,-1467.01,0.00011506,2]
[323558831,1714085464215,-500.0,0.00011506,2]
[323558832,1714085464224,-845.36,0.00011506,2]
[323558833,1714085464234,-1133.23,0.00011506,2]
[323558834,1714085464244,-2011.09,0.00011506,2]
[323558835,1714085464254,-500.0,0.00011506,2]
[323558836,1714085464263,-555.91,0.00011506,2]
[323558837,1714085464272,-1244.48,0.00011506,2]
[323558838,1714085464282,-563.44,0.00011506,2]
[323558839,1714085464291,-2202.75,0.00011506,2]
[323558840,1714085464300,-500.0,0.00011506,2]
[323558841,1714085464311,-500.0,0.00011506,2]
[323558842,1714085464321,-500.0,0.00011506,2]
[323558843,1714085464332,-500.0,0.00011506,2]
[323558844,1714085464342,-500.0,0.00011506,2]
[323558845,1714085464352,-243.70499424,0.00011506,2]
[323558846,1714085464361,-582.63,0.00011506,2]
[323558847,1714085464371,-1325.13,0.00011506,2]
[323558848,1714085464380,-1305.74,0.00011506,2]
[323558849,1714085464389,-1250.46,0.00011506,2]
[323558850,1714085464397,-580.53,0.00011506,2]
[323558851,1714085464407,-500.0,0.00011506,2]
[323558852,1714085464417,-789.03,0.00011506,2]
[323558853,1714085464427,-537.77,0.00011506,2]
[323558854,1714085464436,-500.0,0.00011506,2]
[323558855,1714085464445,-7182.33,0.00011506,2]
[323558856,1714085464454,-1695.58,0.00011506,2]
[323558857,1714085464464,-500.0,0.00011506,2]
[323558858,1714085464473,-150.0,0.00011506,2]
[323558859,1714085464483,-554.02,0.00011506,2]
[323558860,1714085464492,-500.0,0.00011506,2]
[323558861,1714085464502,-500.0,0.00011506,2]
[323558862,1714085464511,-500.0,0.00011506,2]
[323558863,1714085464520,-500.0,0.00011506,2]
[323558864,1714085464529,-500.0,0.00011506,2]
[323558865,1714085464538,-500.0,0.00011506,2]
[323558866,1714085464548,-500.0,0.00011506,2]
[323558867,1714085464557,-580.07,0.00011506,2]
[323558868,1714085464566,-500.0,0.00011506,2]
[323558869,1714085464576,-1058.67,0.00011506,2]
[323558870,1714085464585,-500.0,0.00011506,2]
[323558871,1714085464595,-625.88,0.00011506,2]
[323558872,1714085464605,-500.0,0.00011506,2]
[323558873,1714085464615,-731.33,0.00011506,2]
[323558874,1714085464627,-349.84866205,0.00011506,2]
[323558875,1714085464636,-500.0,0.00011506,2]
[323558876,1714085464646,-1016.54,0.00011506,2]
[323558877,1714085464655,-530.46,0.00011506,2]
[323558878,1714085464664,-500.0,0.00011506,2]
[323558879,1714085464673,-500.0,0.00011506,2]
[323558880,1714085464683,-971.27,0.00011506,2]
[323558881,1714085464692,-500.0,0.00011506,2]
[323558882,1714085464702,-500.0,0.00011506,2]
[323558883,1714085464712,-500.0,0.00011506,2]
[323558884,1714085464721,-500.0,0.00011506,2]
[323558885,1714085464730,-500.0,0.00011506,2]
[323558886,1714085464739,-500.0,0.00011506,2]
[323558887,1714085464749,-500.0,0.00011506,2]
[323558888,1714085464758,-500.0,0.00011506,2]
[323558889,1714085464767,-500.0,0.00011506,2]
[323558890,1714085464776,-3672.06,0.00011506,2]
[323558891,1714085464785,-500.0,0.00011506,2]
[323558892,1714085464795,-500.0,0.00011506,2]
[323558893,1714085464804,-500.0,0.00011506,2]
[323558894,1714085464813,-500.0,0.00011506,2]
[323558895,1714085464822,-1333.15,0.00011506,2]
[323558896,1714085464832,-579.59,0.00011506,2]
[323558897,1714085464841,-648.29,0.00011506,2]
[323558898,1714085464850,-1032.25,0.00011506,2]
[323558899,1714085464859,-500.0,0.00011506,2]
[323558900,1714085464868,-500.0,0.00011506,2]
[323558901,1714085464877,-500.0,0.00011506,2]
[323558902,1714085464887,-5219.88,0.00011506,2]
[323558903,1714085464896,-500.0,0.00011506,2]
[323558904,1714085464906,-743.26,0.00011506,2]
[323558905,1714085464915,-500.0,0.00011506,2]
[323558906,1714085464924,-1109.64,0.00011506,2]
[323558907,1714085464933,-500.0,0.00011506,2]
[323558908,1714085464942,-671.43,0.00011506,2]
[323558909,1714085464951,-500.0,0.00011506,2]
[323558910,1714085464961,-573.08,0.00011506,2]
[323558911,1714085464975,-500.0,0.00011506,2]
[323558912,1714085464984,-724.71,0.00011506,2]
[323558913,1714085464993,-500.0,0.00011506,2]
[323558914,1714085465002,-500.0,0.00011506,2]
[323558915,1714085465013,-500.0,0.00011506,2]
[323558916,1714085465023,-500.0,0.00011506,2]
[323558917,1714085465218,-500.0,0.00011506,2]
[323558918,1714085465228,-513.11,0.00011506,2]
[323558919,1714085465237,-500.0,0.00011506,2]
[323558920,1714085465247,-1073.52,0.00011506,2]
[323558921,1714085465256,-500.0,0.00011506,2]
[323558922,1714085465266,-500.0,0.00011506,2]
[323558923,1714085465275,-500.0,0.00011506,2]
[323558924,1714085465284,-500.0,0.00011506,2]
[323558925,1714085465294,-1397.21,0.00011506,2]
[323558926,1714085465303,-500.0,0.00011506,2]
[323558927,1714085465313,-500.0,0.00011506,2]
[323558928,1714085465322,-500.0,0.00011506,2]
[323558929,1714085465331,-1072.42,0.00011506,2]
[323558930,1714085465341,-1599.52,0.00011506,2]
[323558931,1714085465350,-779.68,0.00011506,2]
[323558932,1714085465359,-522.24,0.00011506,2]
[323558933,1714085465367,-500.0,0.00011506,2]
[323558934,1714085465376,-548.35,0.00011506,2]
[323558935,1714085465385,-500.0,0.00011506,2]
[323558936,1714085465394,-500.0,0.00011506,2]
[323558937,1714085465404,-2788.6,0.00011506,2]
[323558938,1714085465414,-500.0,0.00011506,2]
[323558939,1714085465424,-1749.46,0.00011506,2]
[323558940,1714085465434,-500.0,0.00011506,2]
[323558941,1714085465444,-500.0,0.00011506,2]
[323558942,1714085465454,-500.0,0.00011506,2]
[323558943,1714085465463,-500.0,0.00011506,2]
[323558944,1714085465473,-562.5,0.00011506,2]
[323558945,1714085465482,-2017.13,0.00011506,2]
[323558946,1714085465492,-598.57,0.00011506,2]
[323558947,1714085465501,-2064.28,0.00011506,2]
[323558948,1714085465511,-500.0,0.00011506,2]
[323558949,1714085465521,-590.44,0.00011506,2]
[323558950,1714085465530,-556.53,0.00011506,2]
[323558951,1714085465541,-500.0,0.00011506,2]
[323558952,1714085465551,-787.32,0.00011506,2]
[323558953,1714085465561,-706.77,0.00011506,2]
[323558954,1714085465570,-500.0,0.00011506,2]
[323558955,1714085465579,-798.43,0.00011506,2]
[323558956,1714085465589,-500.0,0.00011506,2]
[323558957,1714085465598,-500.0,0.00011506,2]
[323558958,1714085465607,-963.63,0.00011506,2]
[323558959,1714085465616,-906.7,0.00011506,2]
[323558960,1714085465626,-500.0,0.00011506,2]
[323558961,1714085465636,-500.0,0.00011506,2]
[323558962,1714085465646,-500.0,0.00011506,2]
[323558963,1714085465655,-1927.39,0.00011506,2]
[323558964,1714085465665,-500.0,0.00011506,2]
[323558965,1714085465675,-816.81,0.00011506,2]
[323558966,1714085465685,-569.31,0.00011506,2]
[323558967,1714085465695,-3707.93,0.00011506,2]
[323558968,1714085465705,-166.10111861,0.00011506,2]
[323558969,1714085465715,-513.07,0.00011506,2]
[323558970,1714085465725,-500.0,0.00011506,2]
[323558971,1714085465735,-1098.08,0.00011506,2]
[323558972,1714085465745,-1322.29,0.00011506,2]
[323558973,1714085465755,-500.0,0.00011506,2]
[323558974,1714085465765,-733.35,0.00011506,2]
[323558975,1714085465775,-500.0,0.00011506,2]
[323558976,1714085465785,-500.0,0.00011506,2]
[323558977,1714085465795,-500.0,0.00011506,2]
[323558978,1714085465805,-500.0,0.00011506,2]
[323558979,1714085465815,-1378.88,0.00011506,2]
[323558980,1714085465825,-680.2,0.00011506,2]
[323558981,1714085465834,-535.03,0.00011506,2]
[323558982,1714085465844,-500.0,0.00011506,2]
[323558983,1714085465854,-500.0,0.00011506,2]
[323558984,1714085465864,-4284.78,0.00011506,2]
[323558985,1714085465874,-500.0,0.00011506,2]
[323558986,1714085465885,-500.0,0.00011506,2]
[323558987,1714085465895,-500.0,0.00011506,2]
[323558988,1714085465906,-500.0,0.00011506,2]
[323558989,1714085465917,-500.0,0.00011506,2]
[323558990,1714085465929,-500.0,0.00011506,2]
[323558991,1714085465939,-1565.85,0.00011506,2]
[323558992,1714085465949,-500.0,0.00011506,2]
[323558993,1714085465959,-500.0,0.00011506,2]
[323558994,1714085465973,-500.0,0.00011506,2]
[323558995,1714085465984,-1616.55,0.00011506,2]
[323558996,1714085465994,-1417.61,0.00011506,2]
[323558997,1714085466004,-895.77,0.00011506,2]
[323558998,1714085466015,-500.0,0.00011506,2]
[323558999,1714085466026,-500.0,0.00011506,2]
[323559000,1714085466035,-219.22,0.00011506,2]
[323559001,1714085466046,-500.0,0.00011506,2]
[323559002,1714085466057,-500.0,0.00011506,2]
[323559003,1714085466067,-1487.0,0.00011506,2]
[323559004,1714085466076,-500.0,0.00011506,2]
[323559005,1714085466085,-6515.85,0.00011506,2]
[323559006,1714085466096,-500.0,0.00011506,2]
[323559007,1714085466106,-1222.62,0.00011506,2]
[323559008,1714085466115,-500.0,0.00011506,2]
[323559009,1714085466125,-500.0,0.00011506,2]
[323559010,1714085466135,-500.0,0.00011506,2]
[323559011,1714085466144,-3281.28,0.00011506,2]
[323559012,1714085466154,-500.0,0.00011506,2]
[323559013,1714085466164,-472.01537375,0.00011506,2]
[323559014,1714085466174,-595.02,0.00011506,2]
[323559015,1714085466188,-500.0,0.00011506,2]
[323559016,1714085466198,-658.22,0.00011506,2]
[323559017,1714085466208,-675.47,0.00011506,2]
[323559018,1714085466219,-685.61,0.00011506,2]
[323559019,1714085466228,-306.01674405,0.00011506,2]
[323559020,1714085466238,-500.0,0.00011506,2]
[323559021,1714085466248,-20193.31,0.00011506,2]
[323559022,1714085466257,-500.0,0.00011506,2]
[323559023,1714085466267,-557.8,0.00011506,2]
[323559024,1714085466277,-500.0,0.00011506,2]
[323559025,1714085466287,-1000.0,0.000116,2]
[323559026,1714085466297,-558.6,0.0001162,2]
[323559027,1714085466306,-7083.8405188,0.00011621,2]
[323559028,1714085466316,-150.0,0.00011646,2]
[323559029,1714085466326,-150.0,0.0001167,2]
[323559030,1714085466337,-150.0,0.00011673,2]
[323559031,1714085466347,-150.0,0.00011674,2]
[323559032,1714085466357,-150.0,0.00011675,2]
[323559033,1714085466367,-150.0,0.00011676,2]
[323559034,1714085466376,-150.0,0.0001168,2]
[323559035,1714085466386,-150.0,0.00011681,2]
[323559036,1714085466396,-150.0,0.00011685,2]
[323559037,1714085466406,-150.0,0.00011687,2]
[323559038,1714085466416,-150.0,0.00011687,2]
[323559039,1714085466425,-150.0,0.00011692,2]
[323559040,1714085466438,-150.0,0.00011698,2]
[323559041,1714085466447,-2500.0,0.000117,4]
[323559042,1714085466458,-1000.0,0.000117,2]
[323559043,1714085466468,-150.0,0.00011701,2]
[323559044,1714085466477,-150.0,0.00011708,2]
[323559045,1714085466486,-150.0,0.00011716,2]
[323559046,1714085466497,-150.0,0.00011716,2]
[323559047,1714085466506,-150.0,0.00011717,2]
[323559048,1714085466516,-150.0,0.0001172,2]
[323559049,1714085466525,-150.0,0.00011723,2]
[323559050,1714085466534,-150.0,0.00011725,2]
[323559051,1714085466544,-150.0,0.00011726,2]
[323559052,1714085466553,-150.0,0.00011728,2]
[323559053,1714085466563,-150.0,0.00011735,2]
[323559054,1714085466573,-150.0,0.00011745,2]
[323559055,1714085466582,-150.0,0.00011754,2]
[323559056,1714085466592,-1017.64944485,0.0001176,2]
[323559057,1714085466601,-558.6,0.0001176,2]
[323559058,1714085466611,-150.0,0.00011762,2]
[323559059,1714085466620,-150.0,0.00011764,2]
[323559060,1714085466629,-150.0,0.0001177,2]
[323559061,1714085466640,-150.0,0.00011771,2]
[323559062,1714085466649,-150.0,0.00011772,2]
[323559063,1714085466659,-150.0,0.00011776,2]
[323559064,1714085466668,-150.0,0.00011777,2]
[323559065,1714085466680,-150.0,0.00011778,2]
[323559066,1714085466690,-500.0,0.0001178,2]
[323559067,1714085466699,-500.0,0.0001178,2]
[323559068,1714085466708,-500.0,0.0001178,2]
[323559069,1714085466717,-500.0,0.0001178,2]
[323559070,1714085466727,-500.0,0.0001178,2]
[323559071,1714085466737,-437.45923542,0.0001178,2]
[323559072,1714085466746,-500.0,0.0001178,2]
[323559073,1714085466756,-1151.48,0.0001178,2]
[323559074,1714085466766,-500.0,0.0001178,2]
[323559075,1714085466776,-914.74,0.0001178,2]
[323559076,1714085466785,-500.0,0.0001178,2]
[323559077,1714085466795,-500.0,0.0001178,2]
[323559078,1714085466804,-500.0,0.0001178,2]
[323559079,1714085466815,-500.0,0.0001178,2]
[323559080,1714085466825,-500.0,0.0001178,2]
[323559081,1714085466836,-500.0,0.0001178,2]
[323559082,1714085466847,-500.0,0.0001178,2]
[323559083,1714085466859,-500.0,0.0001178,2]
[323559084,1714085466879,-500.0,0.0001178,2]
[323559085,1714085466893,-500.0,0.0001178,2]
[323559086,1714085466916,-1226.69,0.0001178,2]
[323559087,1714085466925,-500.0,0.0001178,2]
[323559088,1714085466946,-500.0,0.0001178,2]
[323559089,1714085466958,-500.0,0.0001178,2]
[323559090,1714085466969,-500.0,0.0001178,2]
[323559091,1714085466979,-500.0,0.0001178,2]
[323559092,1714085466988,-152.79611102,0.0001178,2]
[323559093,1714085466997,-500.0,0.0001178,2]
[323559094,1714085467009,-500.0,0.0001178,2]
[323559095,1714085467018,-500.0,0.0001178,2]
[323559096,1714085467028,-500.0,0.0001178,2]
[323559097,1714085467048,-500.0,0.0001178,2]
[323559098,1714085467059,-500.0,0.0001178,2]
[323559099,1714085467088,-500.0,0.0001178,2]
[323559100,1714085467109,-500.0,0.0001178,2]
[323559101,1714085467122,-500.0,0.0001178,2]
[323559102,1714085467132,-500.0,0.0001178,2]
[323559103,1714085467154,-500.0,0.0001178,2]
[323559104,1714085467174,-500.0,0.0001178,2]
[323559105,1714085467204,-500.0,0.0001178,2]
[323559106,1714085467215,-500.0,0.0001178,2]
[323559107,1714085467229,-500.0,0.0001178,2]
[323559108,1714085467241,-500.0,0.0001178,2]
[323559109,1714085467254,-500.0,0.0001178,2]
[323559110,1714085467265,-500.0,0.0001178,2]
[323559111,1714085467274,-500.0,0.0001178,2]
[323559112,1714085467283,-500.0,0.0001178,2]
[323559113,1714085467304,-500.0,0.0001178,2]
[323559114,1714085467332,-500.0,0.0001178,2]
[323559115,1714085467350,-500.0,0.0001178,2]
[323559116,1714085467367,-500.0,0.0001178,2]
[323559117,1714085467377,-500.0,0.0001178,2]
[323559118,1714085467387,-500.0,0.0001178,2]
[323559119,1714085467396,-500.0,0.0001178,2]
[323559120,1714085467406,-500.0,0.0001178,2]
[323559121,1714085467416,-1183.02,0.0001178,2]
[323559122,1714085467426,-500.0,0.0001178,2]
[323559123,1714085467436,-500.0,0.0001178,2]
[323559124,1714085467446,-500.0,0.0001178,2]
[323559125,1714085467455,-500.0,0.0001178,2]
[323559126,1714085467466,-500.0,0.0001178,2]
[323559127,1714085467476,-500.0,0.0001178,2]
[323559128,1714085467486,-500.0,0.0001178,2]
[323559129,1714085467496,-500.0,0.0001178,2]
[323559130,1714085467506,-500.0,0.0001178,2]
[323559131,1714085467516,-984.29,0.0001178,2]
[323559132,1714085467526,-500.0,0.0001178,2]
[323559133,1714085467535,-500.0,0.0001178,2]
[323559134,1714085467546,-500.0,0.0001178,2]
[323559135,1714085467556,-500.0,0.0001178,2]
[323559136,1714085467566,-500.0,0.0001178,2]
[323559137,1714085467576,-500.0,0.0001178,2]